[Event "ONJK-C 2019"]
[Site "Borne"]
[Date "2019.08.09"]
[Round "8.14"]
[White "Van der Tuin, Tristan"]
[Black "Alvares, Thomas"]
[Result "0-1"]
[ECO "D02"]
[WhiteElo "1238"]
[BlackElo "1408"]
[Annotator "NA"]
[PlyCount "96"]
[EventDate "2019.08.05"]
[EventType "swiss"]
[EventCountry "NED"]
[SourceTitle "playchess.com"]
[Source "ChessBase"]
[SourceQuality "1"]
[TimeControl "5400+30"]

1. d4 {[%emt 0:00:00]} Nf6 {[%emt 0:00:00]} 2. Nf3 {[%emt 0:00:00]} e6 {[%emt 0:00:08]} 3. Bf4 {[%emt 0:00:00]} d5 {[%emt 0:00:14]} 4. e3 {[%emt 0:00:00]} Nc6 {[%emt 0:01:51]} 5. a3 {[%emt 0:00:14]} Bd7 {[%emt 0:01:14]} 6. Bd3 {[%emt 0:00:31]} Bd6 {[%emt 0:00:38]} 7. Bxd6 {[%emt 0:00:11]} cxd6 {[%emt 0:00:06]} 8. Nbd2 {[%emt 0:00:22]} e5 {[%emt 0:00:51]} 9. dxe5 {[%emt 0:00:10]} dxe5 {[%emt 0:00:08]} 10. e4 {[%emt 0:00:59]} O-O {[%emt 0:03:25]} 11. O-O {[%emt 0:00:21]} Qc7 {[%emt 0:02:25]} 12. Qe2 {[%emt 0:00:46]} d4 {[%emt 0:02:00]} 13. Bb5 {[%emt 0:03:14]} Rfe8 {[%emt 0:00:49]} 14. Ng5 {[%emt 0:00:44]} h6 {[%emt 0:01:17]} 15. Bxc6 {[%emt 0:00:05]} Qxc6 {[%emt 0:01:50]} 16. Ngf3 {[%emt 0:00:12]} Bg4 {[%emt 0:02:04]} 17. h3 {[%emt 0:01:04]} Bh5 {[%emt 0:00:11]} 18. Rac1 {[%emt 0:00:10]} Rac8 {[%emt 0:00:43]} 19. Nb3 {[%emt 0:00:23]} Qxe4 {[%emt 0:00:55]} 20. Qxe4 {[%emt 0:00:33]} Nxe4 {[%emt 0:00:15]} 21. Rfe1 {[%emt 0:00:20]} Bxf3 {[%emt 0:00:37]} 22. gxf3 {[%emt 0:00:57]} Nf6 {[%emt 0:01:39]} 23. f4 {[%emt 0:01:26]} exf4 {[%emt 0:01:58]} 24. Rxe8+ {[%emt 0:00:17]} Rxe8 {[%emt 0:00:28]} 25. Nxd4 {[%emt 0:00:05]} Rd8 {[%emt 0:05:02]} 26. Nb3 {[%emt 0:01:03]} b6 {[%emt 0:03:44]} 27. a4 {[%emt 0:00:14]} Rd5 {[%emt 0:00:58]} 28. Re1 {[%emt 0:00:21]} Kf8 {[%emt 0:00:32]} 29. Re4 {[%emt 0:00:27]} Nxe4 {[%emt 0:00:31]} 30. Kg2 {[%emt 0:00:10]} f3+ {[%emt 0:00:34]} 31. Kxf3 {[%emt 0:00:32]} Nd2+ {[%emt 0:00:08]} 32. Nxd2 {[%emt 0:00:01]} Rxd2 {[%emt 0:00:14]} 33. b4 {[%emt 0:00:12]} Rxc2 {[%emt 0:00:16]} 34. Ke4 {[%emt 0:00:01]} Rc4+ {[%emt 0:00:18]} 35. Kd5 {[%emt 0:00:07]} Rxb4 {[%emt 0:00:08]} 36. a5 {[%emt 0:00:24]} bxa5 {[%emt 0:00:10]} 37. Kc5 {[%emt 0:00:01]} Rb6 {[%emt 0:00:45]} 38. f4 {[%emt 0:00:08]} a4 {[%emt 0:00:07]} 39. f5 {[%emt 0:00:13]} a3 {[%emt 0:00:12]} 40. f6 {[%emt 0:00:02]} a2 {[%emt 0:00:09]} 41. fxg7+ {[%emt 0:00:06]} Kxg7 {[%emt 0:00:09]} 42. h4 {[%emt 0:00:09]} a1=Q {[%emt 0:00:12]} 43. h5 {[%emt 0:00:05]} Qc3+ {[%emt 0:00:13]} 44. Kd5 {[%emt 0:00:05]} Kf6 {[%emt 0:00:37]} 45. Ke4 {[%emt 0:00:16]} Qc4+ {[%emt 0:00:28]} 46. Kf3 {[%emt 0:00:10]} Rb3+ {[%emt 0:00:06]} 47. Kf2 {[%emt 0:00:16]} Qc2+ {[%emt 0:00:06]} 48. Ke1 {[%emt 0:00:02]} Rb1# {[%emt 0:00:08]} 0-1

[Event "ONJK-C 2019"]
[Site "Borne"]
[Date "2019.08.10"]
[Round "9.1"]
[White "Neisingh, Nils"]
[Black "De Rycke, Tyani"]
[Result "0-1"]
[ECO "B45"]
[WhiteElo "1710"]
[BlackElo "1787"]
[Annotator "NA"]
[PlyCount "64"]
[EventDate "2019.08.05"]
[EventType "swiss"]
[EventCountry "NED"]
[SourceTitle "playchess.com"]
[Source "ChessBase"]
[SourceQuality "1"]
[TimeControl "5400+30"]

1. e4 {[%emt 0:00:00]} c5 {[%emt 0:00:00]} 2. Nf3 {[%emt 0:00:00]} e6 {[%emt 0:00:00]} 3. d4 {[%emt 0:00:00]} cxd4 {[%emt 0:00:00]} 4. Nxd4 {[%emt 0:00:00]} Nf6 {[%emt 0:00:00]} 5. Nc3 {[%emt 0:06:05]} Nc6 {[%emt 0:00:00]} 6. Be3 {[%emt 0:00:51]} Bb4 {[%emt 0:00:07]} 7. Bd3 {[%emt 0:02:15]} d5 {[%emt 0:00:43]} 8. Nxc6 {[%emt 0:23:21]} bxc6 {[%emt 0:00:06]} 9. exd5 {[%emt 0:00:43]} Nxd5 {[%emt 0:02:34]} 10. Bd2 {[%emt 0:12:20]} Qa5 {[%emt 0:00:20]} 11. Nxd5 {[%emt 0:01:38]} Bxd2+ {[%emt 0:00:16]} 12. Qxd2 {[%emt 0:00:08]} Qxd2+ {[%emt 0:00:07]} 13. Kxd2 {[%emt 0:00:02]} cxd5 {[%emt 0:00:10]} 14. Rhe1 {[%emt 0:04:42]} Ke7 {[%emt 0:00:38]} 15. b4 {[%emt 0:03:20]} Bd7 {[%emt 0:01:25]} 16. a4 {[%emt 0:03:08]} a5 {[%emt 0:01:05]} 17. b5 {[%emt 0:00:48]} Rhb8 {[%emt 0:00:34]} 18. f4 {[%emt 0:02:38]} Kd6 {[%emt 0:01:00]} 19. Rab1 {[%emt 0:00:49]} h6 {[%emt 0:00:48]} 20. h3 {[%emt 0:07:35]} g5 {[%emt 0:01:35]} 21. Rf1 {[%emt 0:04:41]} f5 {[%emt 0:00:57]} 22. g4 {[%emt 0:02:54]} gxf4 {[%emt 0:01:56]} 23. gxf5 {[%emt 0:01:30]} e5 {[%emt 0:00:34]} 24. Rg1 {[%emt 0:04:03]} e4 {[%emt 0:01:10]} 25. Rg6+ {[%emt 0:01:05]} Ke5 {[%emt 0:00:33]} 26. Bf1 {[%emt 0:00:09]} Bxf5 {[%emt 0:00:32]} 27. Rxh6 {[%emt 0:00:12]} e3+ {[%emt 0:00:24]} 28. Kd1 {[%emt 0:01:09]} f3 {[%emt 0:01:36]} 29. b6 {[%emt 0:05:12]} Rg8 {[%emt 0:01:32]} 30. b7 {[%emt 0:00:45]} Rab8 {[%emt 0:00:39]} 31. Ra6 {[%emt 0:06:03]} Rg1 {[%emt 0:00:11]} 32. Ke1 {[%emt 0:00:03]} Bxh3 {[%emt 0:00:17]} 0-1

[Event "ONJK-C 2019"]
[Site "Borne"]
[Date "2019.08.10"]
[Round "9.2"]
[White "Klugstedt, Vincent"]
[Black "De Vries, Fabian"]
[Result "1-0"]
[ECO "D13"]
[WhiteElo "1850"]
[BlackElo "1704"]
[Annotator "NA"]
[PlyCount "73"]
[EventDate "2019.08.05"]
[EventType "swiss"]
[EventCountry "NED"]
[SourceTitle "playchess.com"]
[Source "ChessBase"]
[SourceQuality "1"]
[TimeControl "5400+30"]

1. d4 {[%emt 0:00:00]} d5 {[%emt 0:00:00]} 2. c4 {[%emt 0:00:00]} c6 {[%emt 0:00:00]} 3. cxd5 {[%emt 0:00:00]} cxd5 {[%emt 0:00:00]} 4. Nc3 {[%emt 0:00:03]} Nc6 {[%emt 0:00:03]} 5. Bf4 {[%emt 0:01:10]} Nf6 {[%emt 0:00:14]} 6. Nf3 {[%emt 0:00:40]} Bg4 {[%emt 0:00:57]} 7. e3 {[%emt 0:01:14]} e6 {[%emt 0:00:17]} 8. Bd3 {[%emt 0:01:08]} Bd6 {[%emt 0:00:25]} 9. Bg3 {[%emt 0:00:45]} O-O {[%emt 0:00:55]} 10. O-O {[%emt 0:00:12]} Rc8 {[%emt 0:02:27]} 11. Rc1 {[%emt 0:00:26]} a6 {[%emt 0:09:00]} 12. a3 {[%emt 0:03:59]} b5 {[%emt 0:07:50]} 13. b4 {[%emt 0:00:39]} Bxg3 {[%emt 0:01:02]} 14. hxg3 {[%emt 0:01:06]} Nd7 {[%emt 0:09:40]} 15. Qc2 {[%emt 0:02:23]} h6 {[%emt 0:01:12]} 16. Nd2 {[%emt 0:04:02]} f6 {[%emt 0:09:37]} 17. Bg6 {[%emt 0:02:20]} Ne7 {[%emt 0:07:34]} 18. Bd3 {[%emt 0:02:04]} e5 {[%emt 0:05:37]} 19. Nb3 {[%emt 0:00:33]} Be6 {[%emt 0:14:30]} 20. Nc5 {[%emt 0:01:23]} Nxc5 {[%emt 0:00:31]} 21. dxc5 {[%emt 0:01:30]} Nc6 {[%emt 0:01:56]} 22. Rfd1 {[%emt 0:02:36]} d4 {[%emt 0:02:49]} 23. Be4 {[%emt 0:01:13]} Bc4 {[%emt 0:03:29]} 24. Ne2 {[%emt 0:02:46]} Bxe2 {[%emt 0:01:40]} 25. Qxe2 {[%emt 0:00:30]} Qd7 {[%emt 0:03:37]} 26. Bxc6 {[%emt 0:01:53]} Rxc6 {[%emt 0:00:08]} 27. exd4 {[%emt 0:00:40]} exd4 {[%emt 0:00:11]} 28. Qd3 {[%emt 0:01:14]} Rd8 {[%emt 0:00:56]} 29. Re1 {[%emt 0:00:34]} Re6 {[%emt 0:01:41]} 30. Qb3 {[%emt 0:01:24]} Rde8 {[%emt 0:00:32]} 31. c6 {[%emt 0:01:19]} Qc8 {[%emt 0:01:13]} 32. Rxe6 {[%emt 0:02:12]} Rxe6 {[%emt 0:01:16]} 33. Re1 {[%emt 0:00:21]} Kf7 {[%emt 0:00:11]} 34. c7 {[%emt 0:00:10]} Ke7 {[%emt 0:00:54]} 35. Rxe6+ {[%emt 0:00:30]} Qxe6 {[%emt 0:00:10]} 36. Qxe6+ {[%emt 0:00:03]} Kxe6 {[%emt 0:00:06]} 37. c8=Q+ {[%emt 0:00:08]} 1-0

[Event "ONJK-C 2019"]
[Site "Borne"]
[Date "2019.08.10"]
[Round "9.3"]
[White "Smeets, Kobe"]
[Black "De Rooij, Kevin"]
[Result "1/2-1/2"]
[ECO "B45"]
[WhiteElo "1666"]
[BlackElo "1480"]
[Annotator "NA"]
[PlyCount "84"]
[EventDate "2019.08.05"]
[EventType "swiss"]
[EventCountry "NED"]
[SourceTitle "playchess.com"]
[Source "ChessBase"]
[SourceQuality "1"]
[TimeControl "5400+30"]

1. e4 {[%emt 0:00:00]} c5 {[%emt 0:07:22]} 2. Nf3 {[%emt 0:00:00]} e6 {[%emt 0:00:15]} 3. d4 {[%emt 0:00:00]} cxd4 {[%emt 0:00:07]} 4. Nxd4 {[%emt 0:00:00]} Nc6 {[%emt 0:00:20]} 5. Nc3 {[%emt 0:00:00]} Nf6 {[%emt 0:00:27]} 6. g3 {[%emt 0:00:30]} Bb4 {[%emt 0:01:10]} 7. Bg2 {[%emt 0:01:20]} d5 {[%emt 0:00:55]} 8. exd5 {[%emt 0:03:13]} Nxd5 {[%emt 0:00:39]} 9. Nde2 {[%emt 0:03:20]} Nxc3 {[%emt 0:01:30]} 10. Qxd8+ {[%emt 0:00:54]} Nxd8 {[%emt 0:00:18]} 11. Nxc3 {[%emt 0:00:08]} O-O {[%emt 0:00:35]} 12. Bd2 {[%emt 0:00:36]} Bd7 {[%emt 0:00:59]} 13. O-O-O {[%emt 0:00:17]} Bc6 {[%emt 0:01:05]} 14. Bxc6 {[%emt 0:00:09]} Nxc6 {[%emt 0:00:05]} 15. a3 {[%emt 0:00:31]} Ba5 {[%emt 0:01:05]} 16. Ne4 {[%emt 0:01:16]} Bxd2+ {[%emt 0:00:16]} 17. Rxd2 {[%emt 0:00:18]} Rfd8 {[%emt 0:01:19]} 18. Nd6 {[%emt 0:00:34]} b6 {[%emt 0:08:28]} 19. Rhd1 {[%emt 0:00:35]} Rd7 {[%emt 0:04:50]} 20. Nc4 {[%emt 0:01:06]} Rxd2 {[%emt 0:00:18]} 21. Rxd2 {[%emt 0:00:07]} Rd8 {[%emt 0:00:10]} 22. Rxd8+ {[%emt 0:00:14]} Nxd8 {[%emt 0:00:05]} 23. Nd6 {[%emt 0:00:07]} Kf8 {[%emt 0:00:16]} 24. Kd2 {[%emt 0:00:07]} Nc6 {[%emt 0:00:26]} 25. Nc4 {[%emt 0:00:46]} Ke7 {[%emt 0:00:16]} 26. f4 {[%emt 0:00:29]} h6 {[%emt 0:00:47]} 27. Ke3 {[%emt 0:00:13]} f6 {[%emt 0:02:59]} 28. Ke4 {[%emt 0:00:54]} Kd7 {[%emt 0:03:24]} 29. c3 {[%emt 0:02:36]} Na5 {[%emt 0:01:07]} 30. Nxa5 {[%emt 0:01:45]} bxa5 {[%emt 0:00:05]} 31. b4 {[%emt 0:00:56]} axb4 {[%emt 0:00:10]} 32. axb4 {[%emt 0:00:18]} Kc6 {[%emt 0:00:55]} 33. c4 {[%emt 0:00:06]} a6 {[%emt 0:00:30]} 34. g4 {[%emt 0:00:36]} g5 {[%emt 0:01:00]} 35. h3 {[%emt 0:05:51]} Kd6 {[%emt 0:00:21]} 36. Kf3 {[%emt 0:11:06]} Kc6 {[%emt 0:01:17]} 37. Ke4 {[%emt 0:00:06]} Kb6 {[%emt 0:01:27]} 38. f5 {[%emt 0:04:55]} e5 {[%emt 0:01:10]} 39. Kd5 {[%emt 0:00:05]} Kc7 {[%emt 0:00:25]} 40. Kc5 {[%emt 0:00:29]} Kb7 {[%emt 0:01:24]} 41. Kd5 {[%emt 0:00:23]} Kc7 {[%emt 0:01:39]} 42. Kc5 {[%emt 0:00:07]} Kb7 {[%emt 0:00:44]} 1/2-1/2

[Event "ONJK-C 2019"]
[Site "Borne"]
[Date "2019.08.10"]
[Round "9.4"]
[White "Den Heijer, Rolinde"]
[Black "Nielsen, Philip"]
[Result "0-1"]
[ECO "B07"]
[WhiteElo "1471"]
[BlackElo "1797"]
[Annotator "NA"]
[PlyCount "142"]
[EventDate "2019.08.05"]
[EventType "swiss"]
[EventCountry "NED"]
[SourceTitle "playchess.com"]
[Source "ChessBase"]
[SourceQuality "1"]
[TimeControl "5400+30"]

1. e4 {[%emt 0:00:00]} d6 {[%emt 0:00:00]} 2. Nf3 {[%emt 0:00:00]} Nf6 {[%emt 0:00:00]} 3. Nc3 {[%emt 0:00:00]} g6 {[%emt 0:00:00]} 4. h3 {[%emt 0:00:37]} Bg7 {[%emt 0:00:00]} 5. Bc4 {[%emt 0:00:25]} O-O {[%emt 0:00:00]} 6. O-O {[%emt 0:00:13]} Nbd7 {[%emt 0:00:22]} 7. d4 {[%emt 0:00:42]} b6 {[%emt 0:00:08]} 8. Bf4 {[%emt 0:01:05]} Bb7 {[%emt 0:00:05]} 9. Re1 {[%emt 0:00:16]} Nxe4 {[%emt 0:02:41]} 10. Nxe4 {[%emt 0:01:48]} d5 {[%emt 0:00:03]} 11. Bd3 {[%emt 0:01:50]} dxe4 {[%emt 0:00:05]} 12. Bxe4 {[%emt 0:00:06]} Bxe4 {[%emt 0:00:06]} 13. Rxe4 {[%emt 0:00:08]} Nf6 {[%emt 0:00:03]} 14. Re2 {[%emt 0:01:35]} e6 {[%emt 0:00:17]} 15. Qd2 {[%emt 0:01:13]} Rc8 {[%emt 0:00:21]} 16. Bh6 {[%emt 0:02:33]} c5 {[%emt 0:00:27]} 17. Bxg7 {[%emt 0:00:39]} Kxg7 {[%emt 0:00:05]} 18. dxc5 {[%emt 0:01:02]} Qxd2 {[%emt 0:00:06]} 19. Rxd2 {[%emt 0:00:53]} Rxc5 {[%emt 0:00:05]} 20. c3 {[%emt 0:00:50]} b5 {[%emt 0:02:18]} 21. Rad1 {[%emt 0:01:43]} a5 {[%emt 0:00:00]} 22. Rd8 {[%emt 0:02:26]} Rxd8 {[%emt 0:00:00]} 23. Rxd8 {[%emt 0:00:05]} b4 {[%emt 0:00:00]} 24. cxb4 {[%emt 0:01:04]} axb4 {[%emt 0:00:00]} 25. Rd4 {[%emt 0:06:42]} Nd5 {[%emt 0:00:17]} 26. g3 {[%emt 0:04:10]} Ra5 {[%emt 0:00:26]} 27. Kf1 {[%emt 0:04:21]} Rxa2 {[%emt 0:00:05]} 28. Rd2 {[%emt 0:00:18]} Nb6 {[%emt 0:00:43]} 29. b3 {[%emt 0:06:12]} Ra3 {[%emt 0:00:46]} 30. Rb2 {[%emt 0:03:02]} Ra1+ {[%emt 0:00:35]} 31. Ke2 {[%emt 0:08:43]} Rc1 {[%emt 0:00:05]} 32. Kd2 {[%emt 0:06:20]} Rc3 {[%emt 0:00:41]} 33. Nd4 {[%emt 0:03:03]} Nd5 {[%emt 0:01:53]} 34. Rc2 {[%emt 0:06:25]} e5 {[%emt 0:01:01]} 35. Nc6 {[%emt 0:00:46]} Rxb3 {[%emt 0:00:13]} 36. Nxe5 {[%emt 0:00:26]} f6 {[%emt 0:01:03]} 37. Nd3 {[%emt 0:01:10]} Rb1 {[%emt 0:00:32]} 38. Rb2 {[%emt 0:01:43]} Rxb2+ {[%emt 0:00:07]} 39. Nxb2 {[%emt 0:00:03]} Kf7 {[%emt 0:00:05]} 40. Kd3 {[%emt 0:01:01]} Ke6 {[%emt 0:00:09]} 41. Kd4 {[%emt 0:01:33]} h5 {[%emt 0:00:23]} 42. f3 {[%emt 0:01:44]} Ne7 {[%emt 0:00:40]} 43. Nd3 {[%emt 0:02:04]} b3 {[%emt 0:00:09]} 44. Nc5+ {[%emt 0:00:22]} Kd6 {[%emt 0:00:21]} 45. Ne4+ {[%emt 0:03:40]} Ke6 {[%emt 0:00:14]} 46. Nc5+ {[%emt 0:00:14]} Kf7 {[%emt 0:00:15]} 47. Kc3 {[%emt 0:01:42]} Nf5 {[%emt 0:00:10]} 48. g4 {[%emt 0:02:03]} Nh4 {[%emt 0:00:06]} 49. f4 {[%emt 0:00:57]} Ng2 {[%emt 0:01:22]} 50. Nd3 {[%emt 0:04:37]} hxg4 {[%emt 0:00:29]} 51. hxg4 {[%emt 0:00:06]} Ke6 {[%emt 0:00:16]} 52. Kxb3 {[%emt 0:04:39]} Kd5 {[%emt 0:00:18]} 53. f5 {[%emt 0:03:24]} g5 {[%emt 0:00:11]} 54. Kc3 {[%emt 0:00:37]} Ne3 {[%emt 0:00:10]} 55. Nf2 {[%emt 0:01:12]} Ke5 {[%emt 0:00:28]} 56. Kd2 {[%emt 0:00:38]} Kf4 {[%emt 0:01:07]} 57. Nd3+ {[%emt 0:02:48]} Kf3 {[%emt 0:00:16]} 58. Ne1+ {[%emt 0:00:32]} Ke4 {[%emt 0:00:05]} 59. Ke2 {[%emt 0:01:52]} Nxg4 {[%emt 0:00:10]} 60. Ng2 {[%emt 0:01:09]} Kxf5 {[%emt 0:00:09]} 61. Kf3 {[%emt 0:00:52]} Ne5+ {[%emt 0:00:11]} 62. Kg3 {[%emt 0:00:20]} Ke4 {[%emt 0:00:50]} 63. Kf2 {[%emt 0:00:29]} f5 {[%emt 0:00:07]} 64. Kg3 {[%emt 0:00:43]} f4+ {[%emt 0:00:15]} 65. Kf2 {[%emt 0:00:15]} g4 {[%emt 0:00:05]} 66. Ne1 {[%emt 0:01:05]} Nd3+ {[%emt 0:00:48]} 67. Nxd3 {[%emt 0:00:18]} Kxd3 {[%emt 0:00:05]} 68. Ke1 {[%emt 0:01:18]} g3 {[%emt 0:00:12]} 69. Kf1 {[%emt 0:00:03]} f3 {[%emt 0:00:15]} 70. Ke1 {[%emt 0:00:08]} g2 {[%emt 0:00:12]} 71. Kf2 {[%emt 0:00:04]} Kd2 {[%emt 0:00:09] Ke1+} 0-1

[Event "ONJK-C 2019"]
[Site "Borne"]
[Date "2019.08.10"]
[Round "9.5"]
[White "De Jong, Mats"]
[Black "Arnold, Lorin"]
[Result "0-1"]
[ECO "A84"]
[WhiteElo "1356"]
[BlackElo "1583"]
[Annotator "NA"]
[PlyCount "78"]
[EventDate "2019.08.05"]
[EventType "swiss"]
[EventCountry "NED"]
[SourceTitle "playchess.com"]
[Source "ChessBase"]
[SourceQuality "1"]
[TimeControl "5400+30"]

1. d4 {[%emt 0:00:00]} d5 {[%emt 0:00:00]} 2. c4 {[%emt 0:00:00]} e6 {[%emt 0:00:00]} 3. Nc3 {[%emt 0:00:00]} c6 {[%emt 0:00:00]} 4. Nf3 {[%emt 0:00:09]} f5 {[%emt 0:00:00]} 5. Bf4 {[%emt 0:01:14]} Nf6 {[%emt 0:00:18]} 6. e3 {[%emt 0:00:41]} Bd6 {[%emt 0:00:24]} 7. Bxd6 {[%emt 0:00:30]} Qxd6 {[%emt 0:00:06]} 8. cxd5 {[%emt 0:00:46]} exd5 {[%emt 0:00:04]} 9. Bd3 {[%emt 0:00:37]} O-O {[%emt 0:00:07]} 10. O-O {[%emt 0:00:09]} Ne4 {[%emt 0:00:17]} 11. Rc1 {[%emt 0:03:38]} Nd7 {[%emt 0:01:27]} 12. a3 {[%emt 0:01:35]} Rf6 {[%emt 0:00:47]} 13. b4 {[%emt 0:00:57]} Rh6 {[%emt 0:01:18]} 14. h3 {[%emt 0:01:01]} g5 {[%emt 0:01:38]} 15. Nh2 {[%emt 0:11:05]} Ndf6 {[%emt 0:01:45]} 16. f3 {[%emt 0:05:17]} Nxc3 {[%emt 0:06:36]} 17. Rxc3 {[%emt 0:01:07]} g4 {[%emt 0:00:32]} 18. f4 {[%emt 0:03:33]} gxh3 {[%emt 0:00:26]} 19. gxh3 {[%emt 0:00:29]} Rxh3 {[%emt 0:00:14]} 20. Kg2 {[%emt 0:01:23]} Rxe3 {[%emt 0:00:31]} 21. Qd2 {[%emt 0:01:40]} Re7 {[%emt 0:01:41]} 22. Nf3 {[%emt 0:05:05]} Rg7+ {[%emt 0:01:47]} 23. Kf2 {[%emt 0:00:38]} Ng4+ {[%emt 0:00:21]} 24. Ke1 {[%emt 0:01:10]} Re7+ {[%emt 0:01:28]} 25. Ne5 {[%emt 0:00:33]} Qh6 {[%emt 0:00:46]} 26. Kd1 {[%emt 0:01:24]} Nxe5 {[%emt 0:01:35]} 27. dxe5 {[%emt 0:01:54]} Be6 {[%emt 0:01:19]} 28. Bc2 {[%emt 0:02:43]} Rg7 {[%emt 0:02:22]} 29. Qf2 {[%emt 0:01:37]} Kf7 {[%emt 0:01:55]} 30. Rg3 {[%emt 0:03:16]} Rxg3 {[%emt 0:02:34]} 31. Qxg3 {[%emt 0:00:05]} Rg8 {[%emt 0:00:14]} 32. Qf3 {[%emt 0:00:02]} Rg4 {[%emt 0:01:21]} 33. Qe3 {[%emt 0:07:11]} Rg2 {[%emt 0:03:17]} 34. Qxa7 {[%emt 0:01:30]} Qh5+ {[%emt 0:00:43]} 35. Kc1 {[%emt 0:00:34]} Rxc2+ {[%emt 0:06:57]} 36. Kxc2 {[%emt 0:03:46]} Qe2+ {[%emt 0:00:16]} 37. Kc3 {[%emt 0:00:28]} d4+ {[%emt 0:01:34]} 38. Kxd4 {[%emt 0:02:05]} Qd2+ {[%emt 0:00:17]} 39. Kc5 {[%emt 0:00:37]} Qe3+ {[%emt 0:00:05]} 0-1

[Event "ONJK-C 2019"]
[Site "Borne"]
[Date "2019.08.10"]
[Round "9.6"]
[White "Wierenga, Jael"]
[Black "Dhaenens, Leon"]
[Result "1-0"]
[ECO "B13"]
[WhiteElo "1469"]
[BlackElo "1583"]
[Annotator "NA"]
[PlyCount "126"]
[EventDate "2019.08.05"]
[EventType "swiss"]
[EventCountry "NED"]
[SourceTitle "playchess.com"]
[Source "ChessBase"]
[SourceQuality "1"]
[TimeControl "5400+30"]

1. d4 {[%emt 0:00:00]} Nf6 {[%emt 0:00:22]} 2. c4 {[%emt 0:00:00]} c5 {[%emt 0:00:04]} 3. e3 {[%emt 0:01:04]} cxd4 {[%emt 0:03:18]} 4. exd4 {[%emt 0:02:01]} d5 {[%emt 0:03:41]} 5. Nf3 {[%emt 0:03:24]} g6 {[%emt 0:05:59]} 6. Nc3 {[%emt 0:02:19]} Bg4 {[%emt 0:06:18]} 7. Be3 {[%emt 0:03:57]} Bg7 {[%emt 0:04:37]} 8. cxd5 {[%emt 0:07:27]} Nxd5 {[%emt 0:06:14]} 9. Qb3 {[%emt 0:08:06]} Nb6 {[%emt 0:03:20]} 10. Bb5+ {[%emt 0:04:35]} N8d7 {[%emt 0:05:36]} 11. Ne5 {[%emt 0:04:38]} Be6 {[%emt 0:02:55]} 12. d5 {[%emt 0:16:25]} Bf5 {[%emt 0:01:55]} 13. g4 {[%emt 0:08:08]} O-O {[%emt 0:12:17]} 14. Nxf7 {[%emt 0:05:24]} Rxf7 {[%emt 0:00:23]} 15. gxf5 {[%emt 0:00:15]} Rxf5 {[%emt 0:00:02]} 16. O-O-O {[%emt 0:01:59]} Rc8 {[%emt 0:12:08]} 17. Rhe1 {[%emt 0:08:17]} Kh8 {[%emt 0:02:55]} 18. Kb1 {[%emt 0:01:54]} Nf6 {[%emt 0:03:54]} 19. Bf1 {[%emt 0:08:26]} Rh5 {[%emt 0:04:41]} 20. Be2 {[%emt 0:02:22]} Rxh2 {[%emt 0:05:04]} 21. Bf3 {[%emt 0:01:13]} Rh3 {[%emt 0:02:37]} 22. Bg2 {[%emt 0:00:16]} Rh4 {[%emt 0:00:40]} 23. Rh1 {[%emt 0:00:50]} Rxh1 {[%emt 0:00:33]} 24. Rxh1 {[%emt 0:00:20]} Ng4 {[%emt 0:00:25]} 25. Bh3 {[%emt 0:00:38]} Qd7 {[%emt 0:01:10]} 26. Qd1 {[%emt 0:03:38]} Rc4 {[%emt 0:01:35]} 27. Bxb6 {[%emt 0:02:22]} axb6 {[%emt 0:00:50]} 28. f3 {[%emt 0:01:15]} Bxc3 {[%emt 0:00:32]} 29. Bxg4 {[%emt 0:00:49]} Qb5 {[%emt 0:00:16]} 30. Qb3 {[%emt 0:00:43]} Qxd5 {[%emt 0:00:53]} 31. bxc3 {[%emt 0:00:28]} Qd3+ {[%emt 0:01:06]} 32. Qc2 {[%emt 0:00:09]} Qd5 {[%emt 0:00:23]} 33. Rd1 {[%emt 0:00:32]} Qc5 {[%emt 0:00:39]} 34. Kb2 {[%emt 0:01:25]} b5 {[%emt 0:00:58]} 35. Be6 {[%emt 0:00:21]} Ra4 {[%emt 0:00:47]} 36. Bb3 {[%emt 0:00:28]} Rh4 {[%emt 0:00:25]} 37. Qe2 {[%emt 0:00:45]} Rf4 {[%emt 0:01:37]} 38. Qe6 {[%emt 0:00:44]} Rf8 {[%emt 0:00:38]} 39. Re1 {[%emt 0:00:23]} Qf2+ {[%emt 0:00:30]} 40. Re2 {[%emt 0:00:06]} Qxf3 {[%emt 0:00:36]} 41. Qxe7 {[%emt 0:00:19]} h5 {[%emt 0:01:06]} 42. Bc2 {[%emt 0:00:35]} Rf7 {[%emt 0:01:18]} 43. Qe8+ {[%emt 0:00:27]} Kg7 {[%emt 0:00:21]} 44. Qxb5 {[%emt 0:00:28]} b6 {[%emt 0:00:36]} 45. Qe5+ {[%emt 0:00:06]} Kh7 {[%emt 0:00:15]} 46. Qe6 {[%emt 0:00:39]} Rf6 {[%emt 0:00:40]} 47. Qe4 {[%emt 0:00:57]} Qf1 {[%emt 0:00:34]} 48. Rg2 {[%emt 0:00:27]} Qb5+ {[%emt 0:00:34]} 49. Qb4 {[%emt 0:00:28]} Qc6 {[%emt 0:00:28]} 50. Qe7+ {[%emt 0:00:30]} Kh6 {[%emt 0:00:14]} 51. Qd8 {[%emt 0:00:29]} Kg7 {[%emt 0:01:57]} 52. Qe7+ {[%emt 0:00:38]} Kh6 {[%emt 0:00:23]} 53. Qe3+ {[%emt 0:00:19]} Kg7 {[%emt 0:00:21]} 54. Qg5 {[%emt 0:00:14]} Re6 {[%emt 0:00:44]} 55. Bb3 {[%emt 0:00:55]} Rf6 {[%emt 0:00:25]} 56. Re2 {[%emt 0:00:16]} Qd6 {[%emt 0:00:38]} 57. Qe3 {[%emt 0:00:35]} Qc6 {[%emt 0:00:32]} 58. Qe8 {[%emt 0:00:38]} Qf3 {[%emt 0:00:38]} 59. Re5 {[%emt 0:00:57]} Rf8 {[%emt 0:01:18]} 60. Qe7+ {[%emt 0:00:27]} Kh8 {[%emt 0:00:31]} 61. Re3 {[%emt 0:01:21]} Qf1 {[%emt 0:00:38]} 62. Qg5 {[%emt 0:00:27]} Qf2+ {[%emt 0:01:18]} 63. Bc2 {[%emt 0:00:35]} Kh7 {[%emt 0:00:43]} 1-0

[Event "ONJK-C 2019"]
[Site "Borne"]
[Date "2019.08.10"]
[Round "9.7"]
[White "De Putter, Sven"]
[Black "Kumar, Prajit Sai"]
[Result "1-0"]
[ECO "B52"]
[WhiteElo "1319"]
[BlackElo "1574"]
[Annotator "NA"]
[PlyCount "59"]
[EventDate "2019.08.05"]
[EventType "swiss"]
[EventCountry "NED"]
[SourceTitle "playchess.com"]
[Source "ChessBase"]
[SourceQuality "1"]
[TimeControl "5400+30"]

1. e4 {[%emt 0:00:00]} c5 {[%emt 0:00:00]} 2. Nf3 {[%emt 0:00:00]} d6 {[%emt 0:00:00]} 3. Bb5+ {[%emt 0:00:00]} Bd7 {[%emt 0:00:00]} 4. Bxd7+ {[%emt 0:00:20]} Nxd7 {[%emt 0:00:00]} 5. c4 {[%emt 0:01:20]} Ngf6 {[%emt 0:00:02]} 6. Nc3 {[%emt 0:00:24]} g6 {[%emt 0:00:20]} 7. d4 {[%emt 0:01:20]} cxd4 {[%emt 0:00:21]} 8. Nxd4 {[%emt 0:00:35]} Bg7 {[%emt 0:00:12]} 9. O-O {[%emt 0:01:25]} O-O {[%emt 0:00:17]} 10. Be3 {[%emt 0:01:10]} Rc8 {[%emt 0:01:12]} 11. b3 {[%emt 0:00:54]} Nc5 {[%emt 0:01:27]} 12. f3 {[%emt 0:01:52]} Qd7 {[%emt 0:01:11]} 13. Qd2 {[%emt 0:01:48]} Rfd8 {[%emt 0:03:00]} 14. Rad1 {[%emt 0:06:11]} a6 {[%emt 0:00:46]} 15. Qc2 {[%emt 0:12:11]} e5 {[%emt 0:02:31]} 16. Nde2 {[%emt 0:03:10]} Qc6 {[%emt 0:01:16]} 17. Nd5 {[%emt 0:01:58]} Nxd5 {[%emt 0:00:24]} 18. Rxd5 {[%emt 0:03:55]} Ne6 {[%emt 0:03:15]} 19. Nc3 {[%emt 0:02:20]} b5 {[%emt 0:00:54]} 20. Rc1 {[%emt 0:04:47]} bxc4 {[%emt 0:01:21]} 21. Ne2 {[%emt 0:02:26]} Nc7 {[%emt 0:03:26]} 22. Rd3 {[%emt 0:14:57]} d5 {[%emt 0:01:34]} 23. exd5 {[%emt 0:07:14]} Nxd5 {[%emt 0:00:44]} 24. Qxc4 {[%emt 0:02:06]} Qxc4 {[%emt 0:00:43]} 25. bxc4 {[%emt 0:03:52]} Nxe3 {[%emt 0:00:26]} 26. Rxe3 {[%emt 0:00:17]} Bh6 {[%emt 0:00:06]} 27. f4 {[%emt 0:00:55]} exf4 {[%emt 0:00:18]} 28. Rf3 {[%emt 0:00:34]} Bf8 {[%emt 0:03:42]} 29. Kf1 {[%emt 0:08:51]} Ba3 {[%emt 0:01:57]} 30. Rxa3 {[%emt 0:01:10]} 1-0